Cogmind - Beta 14 @@@ ROGUE MODE // 2024.11.04 @ 15:13:00 Player: TheLargestBoi Result: Self-destructed Performance ------------- Evolutions (1) 500 Regions Visited (2) 400 Robots Destroyed (31) 155 Value Destroyed (562) 562 Prototype IDs (2) 40 Alien Tech Used (0) 0 Bonus (0) 0 TOTAL SCORE: 1657 Bonus ------- None Cogmind --------- Core Integrity 366/400 Matter 248/300 Energy 250/250 System Corruption 0% Temperature Cool (0) Movement Rolling (90) Location -9/Materials Parts ------- > --- POWER (1) -------- Ion Engine > --- PROPULSION (3) --- Armored Wheel Armored Wheel Armored Wheel > --- UTILITY (3) ------ Medium Storage Unit Targeting Computer Hardened Light Armor Plating > --- WEAPON (2) ------- Improved Assault Rifle Rocket Launcher > --- INVENTORY (10) --- Ion Engine Armored Wheel Armored Wheel Improved Terrain Scanner Hardened Light Armor Plating Hardened Light Armor Plating Shield Generator Advanced Beam Cannon Heavy Assault Rifle Improved Assault Rifle Peak State ------------ > --- POWER ------------ Ion Engine > --- PROPULSION ------- Armored Wheel Armored Wheel Armored Wheel > --- UTILITY ---------- Medium Storage Unit Targeting Computer Hardened Light Armor Plating > --- WEAPON ----------- Improved Assault Rifle Improved Assault Rifle > --- INVENTORY -------- Ion Engine Weight Redist. System Visual Processing Unit Improved Terrain Scanner Hardened Light Armor Plating Hardened Light Armor Plating Shield Generator Advanced Beam Cannon Heavy Assault Rifle Rocket Launcher [Rating: 19] Favorites ----------- Power Ion Engine Engine Ion Engine Propulsion Aluminum Leg Leg Aluminum Leg Wheel Wheel Utility Improved Terrain Scanner Device Improved Terrain Scanner Storage Small Storage Unit Processor Targeting Computer Protection Hardened Light Armor Plating Weapon Improved Assault Rifle Energy Gun Small Laser Ballistic Gun Improved Assault Rifle Launcher Rocket Launcher Special Melee Weapon Datajack Build | -11 -10 -9 ------- Run | Yrd Mat Mat Slots Evolved 2 | . . 2 Power . | . . . Propulsion 1 | . . 1 Utility 1 | . . 1 Weapon . | . . . Parts Attached 30 | 8 8 14 Power 3 | 1 1 1 Engine 3 | 1 1 1 Core . | . . . Reactor . | . . . Propulsion 12 | 2 2 8 Treads . | . . . Leg 7 | 2 . 5 Wheel 5 | . 2 3 Hover . | . . . Flight . | . . . Utility 5 | 2 1 2 Device 1 | 1 . . Storage 2 | 1 1 . Processor 1 | . . 1 Hackware . | . . . Protection 1 | . . 1 Artifact . | . . . Weapon 10 | 3 4 3 Energy Gun 2 | 2 . . Energy Cannon . | . . . Ballistic Gun 5 | 1 3 1 Ballistic Cannon . | . . . Launcher 2 | . . 2 Special Weapon . | . . . Impact Weapon . | . . . Slashing Weapon . | . . . Piercing Weapon . | . . . Special Melee Weapon 1 | . 1 . Unidentified Prototypes 1 | . 1 . Parts Lost 1 | . 1 . Power . | . . . Propulsion . | . . . Utility . | . . . Weapon 1 | . 1 . Highest Loss Streak 1 | . 1 . To Critical Strikes . | . . . Average Slot Usage (%) 99 | . 99 100 Engine 13 | . 14 11 Leg 22 | . 20 29 Wheel 6 | . 7 3 Device 10 | . 14 2 Storage 13 | . 14 11 Processor 3 | . . 11 Protection 2 | . . 8 Energy Gun 1 | . 1 . Ballistic Gun 24 | . 26 21 Peak Build Rating 19 | 9 14 19 Average Rating 13 | 6 13 16 On Entrance 7 | . 9 14 Naked Turns . | . . . Heaviest Build 27 | 13 22 27 Greatest Support 36 | 20 20 36 Greatest Overweight (x) 2 | . 1 2 Average Overweight (x) . | . . . Largest Inventory Capacity 10 | 8 10 10 Average Capacity 8 | 6 8 10 Most Carried 10 | 6 10 10 Average Carried 7 | 3 7 9 Final Capacity 10 | 8 10 10 Final Carried 10 | 5 10 10 Class Distribution -------------------- 92% | Mutant 7% | Scavenger-Mutant Dominant Class ---------------- Mutant | -10/Materials Mutant | -9/Materials Resources | -11 -10 -9 ----------- Run | Yrd Mat Mat Matter Collected 777 | 237 280 260 Remotely . | . . . Salvage Created 877 | 13 503 361 Parts 75 | 4 44 27 Haulers Intercepted 3 | . 1 2 Recyclers Shooed . | . . . Parts Field Recycled . | . . . Retrieved Matter . | . . . Parts Self-Destructed . | . . . Prevented . | . . . Kills | -11 -10 -9 ------- Run | Yrd Mat Mat Combat Hostiles Destroyed 23 | . 13 10 Guns 19 | . 13 6 AOE 4 | . . 4 Classes Destroyed 7 | 1 5 1 Tunneler 2 | 1 1 . Hauler 3 | . 1 2 Recycler 1 | . 1 . Watcher 2 | . 2 . Swarmer 13 | . 9 4 Grunt 9 | . 4 5 Sentry 1 | . . 1 Best Kill Streak 3 | 1 3 3 Combat Bots Only 3 | . 3 3 Max Kills in Single Turn 2 | 1 2 2 Gunslinging 1 | . 1 1 Exploded 2 | . . 2 Melee . | . . . Uniques/NPCs Destroyed . | . . . Combat | -11 -10 -9 -------- Run | Yrd Mat Mat Hostile Shots Fired 81 | . 41 40 Missed 34 | . 18 16 Damage Taken 435 | . 209 226 Core 51 | . 17 34 Absorbed by Shields . | . . . Core Remaining (%) 96 | 100 93 . Volleys Fired 51 | 2 27 22 Largest 2 | 2 2 2 Hottest 60 | 60 46 56 Shots Fired 102 | 4 54 44 Gun 97 | 4 54 39 Cannon . | . . . Launcher 5 | . . 5 Special . | . . . Kinetic 95 | 2 54 39 Thermal 2 | 2 . . Explosive 5 | . . 5 Electromagnetic . | . . . Robot Hit Streak 11 | 3 11 8 Robot Miss Streak 2 | . 2 1 Penetration Max . | . . . Secondary Targets 4 | . 3 1 Max Gunslinging Chain 1 | . 1 1 Shots Hit Robots 64 | 3 36 25 Core Hits 39 | 1 21 17 Critical Kills . | . . . Critical Parts Destroyed 1 | 1 . . Critical Strikes 1 | 1 . . Destroy 1 | 1 . . Melee Attacks 1 | . 1 . Impact . | . . . Slashing . | . . . Piercing . | . . . Sneak Attacks 1 | . 1 . Combat Hostiles . | . . . Follow-up Attacks . | . . . Damage Inflicted 1191 | 30 550 611 Guns 950 | 30 548 372 Cannons . | . . . Explosions 239 | . . 239 Melee . | . . . Ramming 2 | . 2 . Kinetic 929 | 9 548 372 Thermal 21 | 21 . . Explosive 239 | . . 239 Electromagnetic . | . . . Impact . | . . . Slashing . | . . . Piercing . | . . . Highest Corruption . | . . . Average Corruption . | . . . Corruption Purged . | . . . Corruption Blocked . | . . . Overload Shots . | . . . Overflow Damage 25 | . . 25 Projectiles . | . . . Explosions 25 | . . 25 Melee . | . . . Knockbacks . | . . . Impact . | . . . Kinetic . | . . . Secondary . | . . . Self-Inflicted Damage . | . . . Shots . | . . . Rammed 1 | . 1 . Targets Rammed 3 | . 3 . Kicked 2 | . 2 . Crushed . | . . . Highest Temperature 20 | 20 1 6 Average Temperature 7 | 15 1 4 Received Heat Transfer 93 | . 45 48 Siege Activations . | . . . Robots Corrupted . | . . . Combat Hostiles . | . . . Parts Fried . | . . . Impact Corruptions . | . . . Robots Melted . | . . . Combat Hostiles . | . . . Parts Melted . | . . . Heat Transferred 50 | 50 . . Parts Sabotaged . | . . . Parts Stolen . | . . . Parts Stripped . | . . . Power Chain Reactions . | . . . Alert | -11 -10 -9 ------- Run | Yrd Mat Mat Peak Influence 270 | 5 178 270 Initial 3 | . 3 1 Average 90 | 2 79 133 Maximum Alert Level 1 | . . 1 Low Security (%) 90 | 100 100 65 Level 1 9 | . . 34 Level 2 . | . . . Level 3 . | . . . Level 4 . | . . . Level 5 . | . . . High Security . | . . . Max Security . | . . . Squads Dispatched 4 | . 1 3 Investigation 3 | . 1 2 Extermination . | . . . Reinforcement 1 | . . 1 Assault . | . . . Garrison . | . . . Intercept . | . . . Searches Triggered . | . . . Construction Impeded . | . . . Haulers Reinforced . | . . . Active Scanning Responses . | . . . Cargo Convoy Interrupts . | . . . Stealth | -11 -10 -9 --------- Run | Yrd Mat Mat Distress Signals 2 | . 1 1 Communications Jammed . | . . . Distress Signals . | . . . Times Spotted 32 | . 17 15 Peak Tracking Total 4 | . 3 4 Tactical Retreats 1 | . 1 . Traps | -11 -10 -9 ------- Run | Yrd Mat Mat Traps Triggered 2 | . 1 1 Indirectly . | . . . Trap Hack Attempts . | . . . Triggered . | . . . Disarmed . | . . . Reprogrammed . | . . . Reused . | . . . Traps Extracted . | . . . Installed . | . . . Triggered . | . . . Machines | -11 -10 -9 ---------- Run | Yrd Mat Mat Machines Disabled 1 | . . 1 Max in Single Turn 1 | . . 1 Machines Repaired . | . . . Machines Dismantled . | . . . Machines Sabotaged . | . . . Overloaded Fab Kills . | . . . Hacking | -11 -10 -9 --------- Run | Yrd Mat Mat Machines Accessed 13 | . 9 4 Terminals 10 | . 7 3 Fabricators . | . . . Repair Stations . | . . . Recycling Units 3 | . 2 1 Scanalyzers . | . . . Garrison Access . | . . . Total Hacks 38 | . 29 9 Successful 20 | . 16 4 Failed 18 | . 13 5 Catastrophic 4 | . 2 2 Database Lockouts . | . . . Manual 31 | . 23 8 Terminals 27 | . 22 5 Fabricators . | . . . Repair Stations . | . . . Recycling Units 11 | . 7 4 Scanalyzers . | . . . Garrison Access . | . . . Terminal Hacks 12 | . 11 1 Part Schematic 1 | . 1 . Robot Analysis 5 | . 4 1 Prototype ID Bank 1 | . 1 . Recycling Unit Index 1 | . 1 . Unreport Threat 1 | . 1 . Locate Traps 1 | . 1 . Dispatch Records 1 | . 1 . Hauler Manifests 1 | . 1 . Fabricator Hacks . | . . . Repair Station Hacks . | . . . Recycling Unit Hacks . | . . . Scanalyzer . | . . . Garrison Access Hacks . | . . . Unauthorized Hacks 8 | . 5 3 Terminals 3 | . 2 1 Botnet 2 | . 1 1 Operators 1 | . 1 . Fabricators . | . . . Repair Stations . | . . . Recycling Units 5 | . 3 2 Reject 3 | . 2 1 Mask 2 | . 1 1 Scanalyzers . | . . . Garrison Access . | . . . Data Cores Recovered . | . . . Used . | . . . Hacking Detections 11 | . 7 4 Full Trace Events . | . . . Feedback Events . | . . . Feedback Blocked . | . . . Robot Schematics Acquired . | . . . Robots Built . | . . . Authchips . | . . . Time . | . . . Total Robot Build Rating . | . . . Part Schematics Acquired 1 | . 1 . Parts Built . | . . . Authchips . | . . . Time . | . . . Total Part Build Rating . | . . . Parts Repaired . | . . . Time . | . . . Parts Recycled . | . . . Recycled Matter . | . . . Retrieved Matter . | . . . Retrieved Components . | . . . Parts Scanalyzed . | . . . Part Schematics Acquired . | . . . Parts Damaged . | . . . Bothacking | -11 -10 -9 ------------ Run | Yrd Mat Mat Used RIF Installer . | . . . Robots Hacked 1 | . 1 . Non-combat 1 | . 1 . Combat . | . . . Robot Hacks Applied 1 | . 1 . no_distress 1 | . 1 . Relay Couplers Released . | . . . Fabnet Peak Effective % . | . . . Robots Rewired . | . . . Allies Hacked . | . . . Hacks Repelled . | . . . Allies | -11 -10 -9 -------- Run | Yrd Mat Mat Total Allies . | . . . Largest Group . | . . . Highest-Rated Group . | . . . Highest-Rated Ally . | . . . Total Orders . | . . . Ally Attacks . | . . . Total Damage . | . . . Kills . | . . . Allies Corrupted . | . . . Allies Melted . | . . . Intel | -11 -10 -9 ------- Run | Yrd Mat Mat Robot Analysis Total 4 | . 3 1 Derelict Logs Recovered . | . . . Drone Launches . | . . . Drone Recoveries . | . . . Exploration | -11 -10 -9 ------------- Run | Yrd Mat Mat Turns Passed 1883 | 96 1285 502 Spaces Moved 1279 | 64 871 344 Core 7 | 7 . . Treads . | . . . Legs 882 | 57 520 305 Wheels 390 | . 351 39 Hover . | . . . Flight . | . . . Fastest Speed 50 | 50 95 90 Average Speed 112 | 112 110 116 Slowest Speed 190 | 120 190 120 Overloaded Moves . | . . . Propulsion Burnouts . | . . . Robots Hopped . | . . . Cave-ins Triggered . | . . . Exploration Rate (%) 41 | 4 97 23 Regions Visited 2 Branch Regions . Pre-discovered Areas . | . . . Known Exits Taken . | . . . Unknown Exits Taken 2 | 1 1 . Scrap Searched . | . . . Spaces Dug . | . . . Terrain Destroyed 21 | . . 21 Melee . | . . . Projectile . | . . . AOE 21 | . . 21 Terrain Rammed . | . . . Walls Destroyed . | . . . Machines Disabled . | . . . Actions | -11 -10 -9 --------- Run | Yrd Mat Mat Total 1629 | 81 1144 404 Wait 214 | 1 213 . Move 1277 | 63 870 344 Hop . | . . . Pick Up 28 | 6 12 10 Fast Attach 12 | 7 2 3 Attach 5 | . 1 4 Detach . | . . . Swap 13 | 1 5 7 Drop 25 | 1 10 14 Fire 51 | 2 27 22 Melee 1 | . 1 . Ram 1 | . 1 . Kick 2 | . 2 . Crush . | . . . Escape Stasis . | . . . Rewire . | . . . Trap . | . . . Miscellaneous . | . . . Route ------- -11/Scrapyard -10/Materials (discovered 4 exits: *Mat x3 / [*Min]) -9/Materials (discovered 1 exit: [*Mat]) History --------- Turn | Location | Event 4 | -11/Scrapyard | Discovered new exit (range 15) 97 | -11/Scrapyard | Entered Materials 303 | -10/Materials | Build established: Mutant 687 | -10/Materials | Discovered new exit (range 16) 814 | -10/Materials | Discovered new exit (range 16) 1000 | -10/Materials | Discovered new exit (range 10) 1338 | -10/Materials | Discovered new exit (range 12) 1382 | -10/Materials | Entered another Materials area 1382 | -9/Materials | Evolved 2 slots: Propulsion x1, Utility x1 1639 | -9/Materials | Discovered new exit (range 15) 1884 | -9/Materials | Self-destructed Last Messages --------------- Awaiting botnet instructions. 01698_ A-02 Transporter destroyed. 01703_ Dropped Ion Engine. 01708_ Dropped Imp. Heat Sink. 01709_ Acquired Prototype Energy Cannon. 01712_ Acquired 22 matter. 01785_ Connecting with Terminal... 01818_ A-02 Transporter destroyed. 01823_ R-06 Scavenger collects Arm. Wheel. 01828_ Dropped Aluminum Leg. 01829_ Acquired Arm. Wheel. 01830_ Dropped Aluminum Leg. 01833_ Acquired Arm. Wheel. 01838_ Dropped Visual Processing Unit. 01838_ Acquired Arm. Wheel. 01840_ Dropped Weight Redist. System. 01841_ Acquired Arm. Wheel. 01842_ Acquired 54 matter. 01876_ S-10 Pest destroyed. 01877_ U-05 Engineer lays Concrete. Map ----- +----------------------------------------------------+ | ?????????????????????????????????????????????????? | | ?????????????????????????????????????????????????? | | ?????????????????????????????????????????????????? | | ?????????????????????????????????????????????????? | | ?????????????????????????????????????????????????? | | ?????????????????????????????????????????????????? | | ?????????????????????????????????????????????????? | | ?????????????????????????????????????????????????? | | ??????????????????????? ?????????????????????? | | ????????????????????? ???????????????????? | | ?????????????????????? ?????????????????? | | ?????????????????????? ?????????????????? | | ?????????????????????? ??????????????????? | | ?????????????????????? [* ??????????????????? | | ??????????????????????+ ???????????????????? | | ??????????????????????# aw ????? ? ??????????? | | ??????????????????????# ????"" #??????????? | | ??????????????????????# s ???""" #??????????? | | ??????????????????????? ???? #??????????? | | ??????????????????????? ???? #??????????? | | ???????????????????????? ????? ###########? | | ???????????????????????? ?????# ## #? | | ????????????????????????#s#?????# ## """"" #? | | ???????????????????######/####### ?# ""T"" #? | | ???????????????????# ## ??# #? | | ???????????????????# @ # #???# #? | | ???????????????????# """"" # #???# """ #? | | ???????????????????# """"" # #???# """ ] #? | | ???????????????????# """"" + ##??# """ #? | | ???????????????????# # #???# [ #? | | ???????????"???????# # ###?#####+####? | | ???????????????????#######+##### ####### #?? | | ??????????#??##+###?????# %% % #?? | | ???# ##### ######## % #?? | | ?????? #?? | | ???????????#?# ###### #?? | | ???????? ????#]]! !* "" ###??### ##### | | ???#???#?????#]!! != """"" #??????# # | | ???????#?????# !! """"" #??????# + | | ??????######## """"" #??????# # | | ????#?# """ #?? ?#?# # | | ??#???# ##?????# #? | | ????#?# #??????# #? | | ??????# ###+#############+### ##?????# #??## | | ??????# # #??# #######??????# #???? | | ??????# ==# #??# """ "#????#?# ????# #???? | | ????#?# # #??# """ T#???#####+#### ##### | | ??????##### !#??# """ "#??#?# ! !=%= | | ??????????# ! !!#??# ###### ==! =** | | ??????????# !!#??# + = ! ! | +----------------------------------------------------+ Best States ------------- Heat Dissipation 28 Energy Generation 10 Energy Capacity 250 Matter Stores 300 Matter Capacity 300 Sight Range 16 Terrain Scan Range 16 Terrain Scan Density 10 Armor Coverage 150 Evasion (%) 55 Targeting Accuracy 5 Item Schematics ----------------- Lgt. Cannon | -10/Materials | Hacked Robot Schematics ------------------ None Fabricated ------------ Nothing Alien Tech Used ----------------- None Achievements -------------- None Challenges ------------ None Game ------ Seed SingularitySpectralFlail Manual? 0 Play Time 00:17:34 Cumulative 47.0 hours Start 2024.11.03 @ 20:28:49 End 2024.11.04 @ 15:13:00 Sessions 3 Manual Loads 0 Difficulty Rogue Special Mode None Game No. 96 Rogue 96 Adventurer 0 Explorer 0 Win Type - Total 1 Types 1/0/0/0/0/0/0/0/0 Lore% 17 Gallery% 35 Achievement% 34 Wizard Run 0 Options --------- Layout 1 ASCII 0 Keyboard 0 Movement Numpad Keybinds 0 Fullscreen 1 Font 24/Smallcaps Map View 50x35 Zoom Use 0% Tactical HUD 1 Map Filters NONE Filters NONE Steam 1 RUN: 9bfc3295-73d1-4cbc-b16b-855fa1fb7901